[Event "Early-Titled-Tuesday-Blitz-February-13-2024"]
[Site "Chess.com"]
[Date "2024.02.13"]
[Round "3"]
[White "ejam94"]
[Black "Kobalia"]
[Result "0-1"]
[WhiteElo "2507"]
[BlackElo "2802"]
[TimeControl "180+1"]
[EndTime "8:32:45 PST"]
[Termination "Kobalia won on time"]

1. e4 {[%clk 0:03:00.9]} 1... d6 {[%clk 0:02:59.9]} 2. d4 {[%clk 0:03:00.2]}
2... g6 {[%clk 0:03:00.3]} 3. Nf3 {[%clk 0:02:59.8]} 3... Bg7 {[%clk 0:03:00.8]}
4. Nc3 {[%clk 0:02:59]} 4... Nd7 {[%clk 0:03:00.2]} 5. Bc4 {[%clk 0:02:59]} 5...
e6 {[%clk 0:02:59.9]} 6. O-O {[%clk 0:02:58.8]} 6... a6 {[%clk 0:03:00.1]} 7. a4
{[%clk 0:02:58.3]} 7... Ne7 {[%clk 0:03:00]} 8. Bf4 {[%clk 0:02:57.9]} 8... O-O
{[%clk 0:02:56.7]} 9. Qd2 {[%clk 0:02:57.7]} 9... e5 {[%clk 0:02:52.1]} 10. dxe5
{[%clk 0:02:55.5]} 10... Nxe5 {[%clk 0:02:49.9]} 11. Nxe5 {[%clk 0:02:52.7]}
11... dxe5 {[%clk 0:02:49]} 12. Qxd8 {[%clk 0:02:45.2]} 12... Rxd8 {[%clk
0:02:49.9]} 13. Bg5 {[%clk 0:02:45.2]} 13... Re8 {[%clk 0:02:39.3]} 14. Rad1
{[%clk 0:02:34.7]} 14... Kf8 {[%clk 0:02:32]} 15. Bxe7+ {[%clk 0:01:25.8]} 15...
Rxe7 {[%clk 0:02:29.8]} 16. Rd8+ {[%clk 0:01:23.5]} 16... Re8 {[%clk 0:02:29.7]}
17. Rxe8+ {[%clk 0:01:11.8]} 17... Kxe8 {[%clk 0:02:30.6]} 18. Nd5 {[%clk
0:01:10.7]} 18... Kd8 {[%clk 0:02:25.2]} 19. Rd1 {[%clk 0:01:06.8]} 19... Bd7
{[%clk 0:02:19.6]} 20. Nc3 {[%clk 0:00:59.5]} 20... c6 {[%clk 0:02:04.8]} 21.
Bxf7 {[%clk 0:00:44.6]} 21... Kc7 {[%clk 0:02:05]} 22. Bc4 {[%clk 0:00:34.9]}
22... Bf8 {[%clk 0:02:04.9]} 23. Ne2 {[%clk 0:00:33.5]} 23... Bc5 {[%clk
0:02:03.9]} 24. Kf1 {[%clk 0:00:32.9]} 24... Rf8 {[%clk 0:02:01.1]} 25. f3
{[%clk 0:00:33.3]} 25... g5 {[%clk 0:01:59.3]} 26. Ng3 {[%clk 0:00:30.5]} 26...
g4 {[%clk 0:01:40.3]} 27. Ke2 {[%clk 0:00:30.4]} 27... gxf3+ {[%clk 0:01:37.1]}
28. gxf3 {[%clk 0:00:30.7]} 28... Rf6 {[%clk 0:01:37.3]} 29. c3 {[%clk
0:00:29.7]} 29... Rh6 {[%clk 0:01:36.5]} 30. Rh1 {[%clk 0:00:26.6]} 30... Bh3
{[%clk 0:01:35.3]} 31. Nf5 {[%clk 0:00:22.2]} 31... Rg6 {[%clk 0:01:34.3]} 32.
Ng3 {[%clk 0:00:17]} 32... h5 {[%clk 0:01:33.7]} 33. b4 {[%clk 0:00:16.5]} 33...
Ba7 {[%clk 0:01:32.6]} 34. Bf7 {[%clk 0:00:11.3]} 34... Rg5 {[%clk 0:01:23.4]}
35. Bxh5 {[%clk 0:00:11.5]} 35... Kd6 {[%clk 0:01:22.3]} 36. Rd1+ {[%clk
0:00:10.9]} 36... Ke7 {[%clk 0:01:21.8]} 37. Bg4 {[%clk 0:00:10.3]} 37... Bxg4
{[%clk 0:01:21.7]} 38. fxg4 {[%clk 0:00:10.5]} 38... Rxg4 {[%clk 0:01:22]} 39.
Rh1 {[%clk 0:00:06]} 39... Ke6 {[%clk 0:01:18.8]} 40. Rf1 {[%clk 0:00:02.6]}
40... Rh4 {[%clk 0:01:18.2]} 41. Rh1 {[%clk 0:00:02.8]} 41... Bb6 {[%clk
0:01:17]} 42. a5 {[%clk 0:00:03.3]} 42... Bd8 {[%clk 0:01:15.4]} 43. Kf3 {[%clk
0:00:03.7]} 43... Bg5 {[%clk 0:01:14.6]} 44. Kg2 {[%clk 0:00:04]} 44... Bf4
{[%clk 0:01:12.6]} 45. Rd1 {[%clk 0:00:03.8]} 45... Bxg3 {[%clk 0:01:11.6]} 46.
hxg3 {[%clk 0:00:03.4]} 46... Rxe4 {[%clk 0:01:11.8]} 47. Kf3 {[%clk 0:00:03.8]}
47... Rc4 {[%clk 0:01:12]} 48. Rc1 {[%clk 0:00:03.2]} 48... Kf5 {[%clk
0:01:11.9]} 49. Ke3 {[%clk 0:00:03.3]} 49... Rg4 {[%clk 0:01:09.7]} 50. Rf1+
{[%clk 0:00:03.6]} 50... Ke6 {[%clk 0:01:08.9]} 51. Rf3 {[%clk 0:00:03.9]} 51...
e4 {[%clk 0:01:03.1]} 52. Rf4 {[%clk 0:00:04.4]} 52... Rxg3+ {[%clk 0:01:03.2]}
53. Kd4 {[%clk 0:00:04.6]} 53... Rd3+ {[%clk 0:01:02.6]} 54. Kc4 {[%clk
0:00:04.9]} 54... Ke5 {[%clk 0:00:59.7]} 55. Rf7 {[%clk 0:00:05.3]} 55... Rd6
{[%clk 0:00:59.7]} 56. Re7+ {[%clk 0:00:04.6]} 56... Kf4 {[%clk 0:00:57.5]} 57.
Rxb7 {[%clk 0:00:05]} 57... e3 {[%clk 0:00:57.8]} 58. Re7 {[%clk 0:00:04.3]}
58... Kf3 {[%clk 0:00:57.4]} 59. Kc5 {[%clk 0:00:04.9]} 59... Rf6 {[%clk
0:00:54.2]} 60. c4 {[%clk 0:00:04.8]} 60... e2 {[%clk 0:00:52]} 61. b5 {[%clk
0:00:04.1]} 61... cxb5 {[%clk 0:00:52.1]} 62. cxb5 {[%clk 0:00:04.5]} 62... Rf5+
{[%clk 0:00:52.4]} 63. Kb6 {[%clk 0:00:04.3]} 63... axb5 {[%clk 0:00:52.7]} 64.
a6 {[%clk 0:00:04.2]} 64... b4 {[%clk 0:00:53.1]} 65. a7 {[%clk 0:00:04.5]}
65... Rf8 {[%clk 0:00:53.2]} 66. Rf7+ {[%clk 0:00:04.1]} 66... Rxf7 {[%clk
0:00:52.2]} 67. a8=Q+ {[%clk 0:00:04.7]} 67... Kf2 {[%clk 0:00:52.6]} 68. Qe8
{[%clk 0:00:02.8]} 68... Rf6+ {[%clk 0:00:48.2]} 69. Kb5 {[%clk 0:00:01.6]}
69... e1=Q {[%clk 0:00:48.5]} 0-1

[Event "Early-Titled-Tuesday-Blitz-February-13-2024"]
[Site "Chess.com"]
[Date "2024.02.13"]
[Round "3"]
[White "GlavkonVVS"]
[Black "Rozhkov_V"]
[Result "1-0"]
[WhiteElo "2607"]
[BlackElo "2383"]
[TimeControl "180+1"]
[EndTime "8:32:45 PST"]
[Termination "GlavkonVVS won on time"]

1. c4 {[%clk 0:02:59.7]} 1... e5 {[%clk 0:02:59.8]} 2. Nc3 {[%clk 0:02:59.6]}
2... Nf6 {[%clk 0:03:00.2]} 3. g3 {[%clk 0:02:59.3]} 3... d5 {[%clk 0:03:00.5]}
4. cxd5 {[%clk 0:02:58.1]} 4... Nxd5 {[%clk 0:03:01.4]} 5. Bg2 {[%clk
0:02:57.5]} 5... Nb6 {[%clk 0:03:01.7]} 6. Nf3 {[%clk 0:02:57.1]} 6... Nc6
{[%clk 0:03:02.1]} 7. O-O {[%clk 0:02:56]} 7... Be7 {[%clk 0:03:02.4]} 8. e3
{[%clk 0:02:52.8]} 8... O-O {[%clk 0:02:57.1]} 9. d4 {[%clk 0:02:52.9]} 9...
exd4 {[%clk 0:02:54.9]} 10. Nxd4 {[%clk 0:02:46.2]} 10... Nxd4 {[%clk 0:02:55]}
11. exd4 {[%clk 0:02:46.5]} 11... c6 {[%clk 0:02:55.2]} 12. a4 {[%clk
0:02:45.6]} 12... Be6 {[%clk 0:02:50.5]} 13. a5 {[%clk 0:02:45.4]} 13... Nd5
{[%clk 0:02:50.5]} 14. a6 {[%clk 0:02:45.1]} 14... b6 {[%clk 0:02:36.6]} 15. Re1
{[%clk 0:02:40.1]} 15... Rc8 {[%clk 0:02:31.3]} 16. Rxe6 {[%clk 0:02:24.2]}
16... fxe6 {[%clk 0:02:30.8]} 17. Bh3 {[%clk 0:02:24.5]} 17... Rf6 {[%clk
0:01:58.1]} 18. Ne4 {[%clk 0:02:13.7]} 18... Rg6 {[%clk 0:01:58.2]} 19. f4
{[%clk 0:02:00.4]} 19... c5 {[%clk 0:01:55.4]} 20. f5 {[%clk 0:01:52.7]} 20...
exf5 {[%clk 0:01:55.5]} 21. Bxf5 {[%clk 0:01:52.1]} 21... cxd4 {[%clk
0:01:55.5]} 22. Qxd4 {[%clk 0:01:38.3]} 22... Bc5 {[%clk 0:01:46.9]} 23. Nxc5
{[%clk 0:01:37.7]} 23... Rxc5 {[%clk 0:01:47.8]} 24. Bxg6 {[%clk 0:01:36.3]}
24... hxg6 {[%clk 0:01:48.7]} 25. b4 {[%clk 0:01:27.3]} 25... Rc2 {[%clk
0:01:33.4]} 26. Bb2 {[%clk 0:01:23.1]} 26... Qd7 {[%clk 0:01:23.9]} 27. Rd1
{[%clk 0:01:21.9]} 27... Qf7 {[%clk 0:01:11.1]} 28. Qxd5 {[%clk 0:01:04.9]}
28... Qxd5 {[%clk 0:01:01.7]} 29. Rxd5 {[%clk 0:01:04.5]} 29... Rxb2 {[%clk
0:01:02.1]} 30. b5 {[%clk 0:01:04.2]} 30... Kh7 {[%clk 0:00:47.8]} 31. h4 {[%clk
0:01:02.5]} 31... Kg8 {[%clk 0:00:37]} 32. Kf1 {[%clk 0:01:00.5]} 32... Kf7
{[%clk 0:00:29.7]} 33. Rd7+ {[%clk 0:00:59]} 33... Kf6 {[%clk 0:00:26.7]} 34.
Rxa7 {[%clk 0:00:58.5]} 34... Rxb5 {[%clk 0:00:27.1]} 35. Rb7 {[%clk 0:00:58.4]}
35... Kf5 {[%clk 0:00:16.4]} 36. Rxg7 {[%clk 0:00:51.2]} 36... Ra5 {[%clk
0:00:16.5]} 37. a7 {[%clk 0:00:50.1]} 37... b5 {[%clk 0:00:16.8]} 38. Ke2 {[%clk
0:00:47.9]} 38... b4 {[%clk 0:00:16.5]} 39. Kd3 {[%clk 0:00:47.7]} 39... Kf6
{[%clk 0:00:14.6]} 40. Rb7 {[%clk 0:00:46.3]} 40... Kf5 {[%clk 0:00:12.4]} 41.
Rb5+ {[%clk 0:00:43.6]} 41... Rxb5 {[%clk 0:00:10.5]} 42. a8=Q {[%clk
0:00:43.7]} 42... b3 {[%clk 0:00:11.4]} 43. Qf8+ {[%clk 0:00:41.3]} 43... Kg4
{[%clk 0:00:09.5]} 44. Qf4+ {[%clk 0:00:40.9]} 44... Kh3 {[%clk 0:00:09]} 45.
Qf1+ {[%clk 0:00:35.8]} 45... Kg4 {[%clk 0:00:07.8]} 46. Kc3 {[%clk 0:00:33]}
46... Rb6 {[%clk 0:00:05.4]} 47. Qe2+ {[%clk 0:00:29.6]} 47... Kxg3 {[%clk
0:00:05.8]} 48. Qe3+ {[%clk 0:00:28.9]} 1-0

[Event "Early-Titled-Tuesday-Blitz-February-13-2024"]
[Site "Chess.com"]
[Date "2024.02.13"]
[Round "3"]
[White "ilushka"]
[Black "krasavetc"]
[Result "1-0"]
[WhiteElo "2458"]
[BlackElo "2616"]
[TimeControl "180+1"]
[EndTime "8:32:47 PST"]
[Termination "ilushka won by checkmate"]

1. Nf3 {[%clk 0:02:59]} 1... Nf6 {[%clk 0:02:59.7]} 2. g3 {[%clk 0:02:59.2]}
2... g6 {[%clk 0:02:59.5]} 3. b3 {[%clk 0:02:59.5]} 3... Bg7 {[%clk 0:02:59.8]}
4. Bb2 {[%clk 0:03:00]} 4... O-O {[%clk 0:03:00.3]} 5. Bg2 {[%clk 0:03:00.5]}
5... c5 {[%clk 0:03:00.4]} 6. c4 {[%clk 0:03:00.8]} 6... Nc6 {[%clk 0:02:59.9]}
7. O-O {[%clk 0:03:00.8]} 7... b6 {[%clk 0:02:57.6]} 8. d4 {[%clk 0:03:00.7]}
8... cxd4 {[%clk 0:02:58]} 9. Nxd4 {[%clk 0:03:01.3]} 9... Bb7 {[%clk
0:02:58.7]} 10. Nc3 {[%clk 0:03:01.3]} 10... a6 {[%clk 0:02:53]} 11. Rc1 {[%clk
0:03:01.2]} 11... Rc8 {[%clk 0:02:52.9]} 12. Qd2 {[%clk 0:03:01.3]} 12... d6
{[%clk 0:02:36.3]} 13. Rfd1 {[%clk 0:02:55.8]} 13... Qd7 {[%clk 0:02:34.2]} 14.
Nd5 {[%clk 0:02:24.1]} 14... Nxd5 {[%clk 0:01:41.6]} 15. Bxd5 {[%clk 0:02:18.7]}
15... Ne5 {[%clk 0:01:36.2]} 16. f4 {[%clk 0:02:00.4]} 16... Ng4 {[%clk
0:01:34.2]} 17. h3 {[%clk 0:01:12.8]} 17... Nf6 {[%clk 0:01:29.6]} 18. Bxb7
{[%clk 0:01:12.9]} 18... Qxb7 {[%clk 0:01:30.5]} 19. Nf3 {[%clk 0:01:12.7]}
19... b5 {[%clk 0:01:27.5]} 20. cxb5 {[%clk 0:00:50.3]} 20... Ne4 {[%clk
0:01:23.9]} 21. bxa6 {[%clk 0:00:30]} 21... Qxa6 {[%clk 0:00:56.7]} 22. Qd3
{[%clk 0:00:29.9]} 22... Rxc1 {[%clk 0:00:25.8]} 23. Bxc1 {[%clk 0:00:21]} 23...
Qb7 {[%clk 0:00:24.5]} 24. Kg2 {[%clk 0:00:17.7]} 24... Rc8 {[%clk 0:00:24.2]}
25. Be3 {[%clk 0:00:15.7]} 25... Nc3 {[%clk 0:00:20.3]} 26. Rc1 {[%clk
0:00:13.8]} 26... Nxa2 {[%clk 0:00:20.1]} 27. Rxc8+ {[%clk 0:00:13.6]} 27...
Qxc8 {[%clk 0:00:21]} 28. Qc4 {[%clk 0:00:11.4]} 28... Qb7 {[%clk 0:00:18.7]}
29. Bd2 {[%clk 0:00:08.7]} 29... h6 {[%clk 0:00:15.6]} 30. Qa4 {[%clk
0:00:08.5]} 30... Nc3 {[%clk 0:00:12.9]} 31. Qe8+ {[%clk 0:00:08.7]} 31... Kh7
{[%clk 0:00:11.2]} 32. Bxc3 {[%clk 0:00:07.3]} 32... Bxc3 {[%clk 0:00:10.2]} 33.
Qxf7+ {[%clk 0:00:08.2]} 33... Bg7 {[%clk 0:00:10.6]} 34. f5 {[%clk 0:00:07]}
34... gxf5 {[%clk 0:00:09.5]} 35. Qxf5+ {[%clk 0:00:07.2]} 35... Kg8 {[%clk
0:00:10.2]} 36. Qe6+ {[%clk 0:00:06.7]} 36... Kh7 {[%clk 0:00:10]} 37. e4 {[%clk
0:00:07.2]} 37... Kh8 {[%clk 0:00:06.9]} 38. h4 {[%clk 0:00:07.1]} 38... Qa7
{[%clk 0:00:05.4]} 39. Kh3 {[%clk 0:00:07]} 39... Qb7 {[%clk 0:00:04.8]} 40. Qf7
{[%clk 0:00:06.3]} 40... Qd7+ {[%clk 0:00:05]} 41. Kh2 {[%clk 0:00:04.4]} 41...
Qc8 {[%clk 0:00:03.6]} 42. h5 {[%clk 0:00:03.7]} 42... e6 {[%clk 0:00:03.2]} 43.
Nh4 {[%clk 0:00:04.2]} 43... d5 {[%clk 0:00:02.8]} 44. exd5 {[%clk 0:00:04.2]}
44... exd5 {[%clk 0:00:03.3]} 45. Nf5 {[%clk 0:00:05.1]} 45... Qc2+ {[%clk
0:00:02.3]} 46. Kh3 {[%clk 0:00:05]} 46... Qb2 {[%clk 0:00:02.1]} 47. b4 {[%clk
0:00:04.3]} 47... d4 {[%clk 0:00:02.1]} 48. Qxg7# {[%clk 0:00:04.3]} 1-0

[Event "Early-Titled-Tuesday-Blitz-February-13-2024"]
[Site "Chess.com"]
[Date "2024.02.13"]
[Round "3"]
[White "Jaka_Brilej"]
[Black "Vaathi_Coming"]
[Result "1-0"]
[WhiteElo "2542"]
[BlackElo "2890"]
[TimeControl "180+1"]
[EndTime "8:32:48 PST"]
[Termination "Jaka_Brilej won on time"]

1. e4 {[%clk 0:03:00.9]} 1... e5 {[%clk 0:03:00.1]} 2. Nf3 {[%clk 0:03:00.7]}
2... Nc6 {[%clk 0:03:00.1]} 3. Bc4 {[%clk 0:03:00.5]} 3... Bc5 {[%clk
0:02:59.2]} 4. d3 {[%clk 0:03:00.1]} 4... d6 {[%clk 0:02:58.7]} 5. Nc3 {[%clk
0:02:54.7]} 5... h6 {[%clk 0:02:56.8]} 6. Na4 {[%clk 0:02:49]} 6... Nf6 {[%clk
0:02:57.4]} 7. Nxc5 {[%clk 0:02:48.2]} 7... dxc5 {[%clk 0:02:58.3]} 8. a3 {[%clk
0:02:44.2]} 8... Qe7 {[%clk 0:02:54.8]} 9. h3 {[%clk 0:02:42.4]} 9... Be6 {[%clk
0:02:54.5]} 10. Bb5 {[%clk 0:02:38.9]} 10... Bd7 {[%clk 0:02:53.3]} 11. Be3
{[%clk 0:02:37.3]} 11... b6 {[%clk 0:02:52.5]} 12. Bc4 {[%clk 0:02:33.5]} 12...
g5 {[%clk 0:02:37.2]} 13. Nd2 {[%clk 0:02:29.8]} 13... Be6 {[%clk 0:02:34.4]}
14. c3 {[%clk 0:02:03]} 14... Bxc4 {[%clk 0:02:28.5]} 15. Nxc4 {[%clk
0:02:02.4]} 15... O-O-O {[%clk 0:02:27.8]} 16. Qe2 {[%clk 0:02:02.4]} 16... Rd7
{[%clk 0:02:22.2]} 17. O-O-O {[%clk 0:02:02.2]} 17... Qe6 {[%clk 0:02:19.8]} 18.
h4 {[%clk 0:01:50.5]} 18... g4 {[%clk 0:02:18.7]} 19. Nd2 {[%clk 0:01:47.1]}
19... Nh5 {[%clk 0:02:11.8]} 20. Nf1 {[%clk 0:01:44.5]} 20... Nf4 {[%clk
0:02:06.7]} 21. Bxf4 {[%clk 0:01:38.5]} 21... exf4 {[%clk 0:02:07.6]} 22. g3
{[%clk 0:01:36.6]} 22... f3 {[%clk 0:01:50.5]} 23. Qc2 {[%clk 0:01:19]} 23...
Rhd8 {[%clk 0:01:33.2]} 24. Ne3 {[%clk 0:01:19.3]} 24... Ne5 {[%clk 0:01:31.3]}
25. Nd5 {[%clk 0:01:19.3]} 25... c6 {[%clk 0:01:27.8]} 26. Nf4 {[%clk
0:01:18.7]} 26... Qa2 {[%clk 0:01:27.7]} 27. Rhe1 {[%clk 0:00:59.1]} 27... Qa1+
{[%clk 0:01:15.5]} 28. Qb1 {[%clk 0:00:59.1]} 28... Nxd3+ {[%clk 0:01:12.5]} 29.
Rxd3 {[%clk 0:00:55]} 29... Qxb1+ {[%clk 0:01:13.4]} 30. Kxb1 {[%clk 0:00:55.8]}
30... Rxd3 {[%clk 0:01:14.3]} 31. Nxd3 {[%clk 0:00:54]} 31... Rxd3 {[%clk
0:01:15.2]} 32. Kc2 {[%clk 0:00:54.3]} 32... Rd6 {[%clk 0:00:58.6]} 33. e5
{[%clk 0:00:54.5]} 33... Re6 {[%clk 0:00:58.7]} 34. Re4 {[%clk 0:00:54.9]} 34...
h5 {[%clk 0:00:50.8]} 35. Kd3 {[%clk 0:00:55.2]} 35... Kd7 {[%clk 0:00:48.5]}
36. Ke3 {[%clk 0:00:52.9]} 36... f6 {[%clk 0:00:16.5]} 37. Kf4 {[%clk
0:00:41.6]} 37... fxe5+ {[%clk 0:00:11.6]} 38. Kg5 {[%clk 0:00:39.4]} 38... Rd6
{[%clk 0:00:06.5]} 39. Kxh5 {[%clk 0:00:38.9]} 39... Rd2 {[%clk 0:00:06.2]} 40.
Kxg4 {[%clk 0:00:39.1]} 40... Rxf2 {[%clk 0:00:06.6]} 41. Rxe5 {[%clk 0:00:34]}
41... c4 {[%clk 0:00:06.3]} 42. h5 {[%clk 0:00:32.1]} 42... Kd6 {[%clk
0:00:03.7]} 43. Re4 {[%clk 0:00:26.9]} 43... b5 {[%clk 0:00:03.1]} 44. h6 {[%clk
0:00:24]} 44... Rh2 {[%clk 0:00:03.3]} 45. Kg5 {[%clk 0:00:20.3]} 45... f2
{[%clk 0:00:02.7]} 46. Rf4 {[%clk 0:00:20.7]} 46... Ke5 {[%clk 0:00:02.1]} 47.
Kg6 {[%clk 0:00:20.8]} 47... a5 {[%clk 0:00:01.3]} 48. h7 {[%clk 0:00:19.8]}
48... c5 {[%clk 0:00:01.5]} 49. Kg7 {[%clk 0:00:19.8]} 49... b4 {[%clk
0:00:01.4]} 50. h8=Q {[%clk 0:00:19.1]} 50... Rxh8 {[%clk 0:00:01.4]} 51. Kxh8
{[%clk 0:00:20]} 1-0

[Event "Early-Titled-Tuesday-Blitz-February-13-2024"]
[Site "Chess.com"]
[Date "2024.02.13"]
[Round "3"]
[White "BelaKis"]
[Black "EvgenyBurmakin"]
[Result "1/2-1/2"]
[WhiteElo "2197"]
[BlackElo "2414"]
[TimeControl "180+1"]
[EndTime "8:32:49 PST"]
[Termination "Game drawn by repetition"]

1. d4 {[%clk 0:02:58.6]} 1... Nf6 {[%clk 0:02:58.6]} 2. c4 {[%clk 0:02:58]} 2...
g6 {[%clk 0:02:59.2]} 3. Nc3 {[%clk 0:02:57.8]} 3... Bg7 {[%clk 0:02:59.7]} 4.
e4 {[%clk 0:02:58.1]} 4... d6 {[%clk 0:03:00.2]} 5. h3 {[%clk 0:02:58.4]} 5...
O-O {[%clk 0:03:00.5]} 6. Bg5 {[%clk 0:02:58.8]} 6... h6 {[%clk 0:02:59.7]} 7.
Be3 {[%clk 0:02:57.2]} 7... e5 {[%clk 0:02:59.7]} 8. d5 {[%clk 0:02:56.9]} 8...
a5 {[%clk 0:02:53.1]} 9. Qd2 {[%clk 0:02:55.2]} 9... Kh7 {[%clk 0:02:52.6]} 10.
g4 {[%clk 0:02:53]} 10... Nbd7 {[%clk 0:02:43.5]} 11. Nge2 {[%clk 0:02:52.7]}
11... Nc5 {[%clk 0:02:42.4]} 12. Ng3 {[%clk 0:02:53.2]} 12... Nfd7 {[%clk
0:02:34.3]} 13. h4 {[%clk 0:02:46.2]} 13... Nb6 {[%clk 0:02:32.9]} 14. h5 {[%clk
0:02:39.6]} 14... g5 {[%clk 0:02:30.8]} 15. f3 {[%clk 0:02:39.9]} 15... Bd7
{[%clk 0:02:27]} 16. Be2 {[%clk 0:02:39.9]} 16... a4 {[%clk 0:02:24]} 17. Kf2
{[%clk 0:02:35.6]} 17... Qe7 {[%clk 0:02:13.1]} 18. Rab1 {[%clk 0:02:35.6]}
18... Bf6 {[%clk 0:01:36]} 19. Qc2 {[%clk 0:02:20.3]} 19... Rfc8 {[%clk
0:01:22.4]} 20. b4 {[%clk 0:02:18.2]} 20... axb3 {[%clk 0:01:22]} 21. axb3
{[%clk 0:02:19.1]} 21... c6 {[%clk 0:01:20.5]} 22. b4 {[%clk 0:02:15.6]} 22...
Nca4 {[%clk 0:01:15]} 23. Nxa4 {[%clk 0:01:47.7]} 23... Nxa4 {[%clk 0:01:15.9]}
24. dxc6 {[%clk 0:00:43.6]} 24... bxc6 {[%clk 0:01:12.6]} 25. Ra1 {[%clk
0:00:38.8]} 25... c5 {[%clk 0:01:05.2]} 26. b5 {[%clk 0:00:39.1]} 26... Nb6
{[%clk 0:01:04.1]} 27. Qb2 {[%clk 0:00:35.7]} 27... Be6 {[%clk 0:00:55.5]} 28.
Qc3 {[%clk 0:00:26.2]} 28... Qb7 {[%clk 0:00:42.7]} 29. Rhd1 {[%clk 0:00:21.7]}
29... Be7 {[%clk 0:00:41.2]} 30. Nf5 {[%clk 0:00:19.4]} 30... Bxf5 {[%clk
0:00:39.1]} 31. gxf5 {[%clk 0:00:19.8]} 31... f6 {[%clk 0:00:39]} 32. Kg2 {[%clk
0:00:19.4]} 32... Kg7 {[%clk 0:00:29.1]} 33. Kh3 {[%clk 0:00:19.5]} 33... Qd7
{[%clk 0:00:27.8]} 34. Kg4 {[%clk 0:00:18.4]} 34... Qb7 {[%clk 0:00:25.2]} 35.
Rxa8 {[%clk 0:00:17.8]} 35... Rxa8 {[%clk 0:00:24.6]} 36. Ra1 {[%clk 0:00:18.7]}
36... Bd8 {[%clk 0:00:16.7]} 37. Bd2 {[%clk 0:00:17.3]} 37... Bc7 {[%clk
0:00:16.5]} 38. Bc1 {[%clk 0:00:15.7]} 38... Na4 {[%clk 0:00:15.8]} 39. Qc2
{[%clk 0:00:15.3]} 39... Nb6 {[%clk 0:00:13.2]} 40. Qb2 {[%clk 0:00:15.7]} 40...
Rxa1 {[%clk 0:00:11.7]} 41. Qxa1 {[%clk 0:00:16.6]} 41... Qa8 {[%clk 0:00:10.5]}
42. Qxa8 {[%clk 0:00:16.5]} 42... Nxa8 {[%clk 0:00:11.4]} 43. Bd2 {[%clk
0:00:17.1]} 43... Kf7 {[%clk 0:00:11.1]} 44. Kg3 {[%clk 0:00:17.3]} 44... Ke7
{[%clk 0:00:11.4]} 45. Kf2 {[%clk 0:00:17.8]} 45... Kd7 {[%clk 0:00:11.6]} 46.
Ke3 {[%clk 0:00:18.3]} 46... Kc8 {[%clk 0:00:11]} 47. Kd3 {[%clk 0:00:18.8]}
47... Kb7 {[%clk 0:00:10.7]} 48. Kc2 {[%clk 0:00:19.3]} 48... Nb6 {[%clk
0:00:10.7]} 49. Kb3 {[%clk 0:00:19.6]} 49... Nd7 {[%clk 0:00:10.1]} 50. Bc3
{[%clk 0:00:19.8]} 50... Nb8 {[%clk 0:00:09.6]} 51. Ka4 {[%clk 0:00:20.2]} 51...
Nd7 {[%clk 0:00:09.9]} 52. Kb3 {[%clk 0:00:19.3]} 52... Nb6 {[%clk 0:00:09.8]}
53. Bd2 {[%clk 0:00:18.7]} 53... Nc8 {[%clk 0:00:09.3]} 54. Bc3 {[%clk
0:00:19.1]} 54... Ne7 {[%clk 0:00:09.3]} 55. Bd2 {[%clk 0:00:18.7]} 55... Nc8
{[%clk 0:00:09.4]} 56. Bf1 {[%clk 0:00:18.9]} 56... Nb6 {[%clk 0:00:09.6]} 57.
Bc3 {[%clk 0:00:18.1]} 57... Nd7 {[%clk 0:00:10]} 58. Bd2 {[%clk 0:00:18.6]}
58... Nf8 {[%clk 0:00:09.9]} 59. Bc3 {[%clk 0:00:18.9]} 59... Nh7 {[%clk
0:00:10.2]} 60. Bd2 {[%clk 0:00:18.5]} 60... Nf8 {[%clk 0:00:10.8]} 61. Bc3
{[%clk 0:00:18.4]} 61... Nd7 {[%clk 0:00:11.4]} 62. Bd2 {[%clk 0:00:18.7]} 62...
Nb6 {[%clk 0:00:11.7]} 63. Bc3 {[%clk 0:00:19]} 63... Nd7 {[%clk 0:00:12.3]}
1/2-1/2

[Event "Early-Titled-Tuesday-Blitz-February-13-2024"]
[Site "Chess.com"]
[Date "2024.02.13"]
[Round "3"]
[White "kpio91"]
[Black "newyorkmouse"]
[Result "0-1"]
[WhiteElo "2892"]
[BlackElo "2666"]
[TimeControl "180+1"]
[EndTime "8:32:51 PST"]
[Termination "newyorkmouse won on time"]

1. e4 {[%clk 0:03:00.9]} 1... c6 {[%clk 0:02:59.7]} 2. d4 {[%clk 0:02:58.3]}
2... d5 {[%clk 0:02:59.9]} 3. exd5 {[%clk 0:02:58.5]} 3... cxd5 {[%clk 0:03:00]}
4. Bd3 {[%clk 0:02:58.3]} 4... Nc6 {[%clk 0:02:59.8]} 5. c3 {[%clk 0:02:57]}
5... Qc7 {[%clk 0:02:59.9]} 6. h3 {[%clk 0:02:56.4]} 6... g6 {[%clk 0:02:59.3]}
7. Nf3 {[%clk 0:02:56.3]} 7... Bf5 {[%clk 0:02:59]} 8. O-O {[%clk 0:02:51.6]}
8... Nf6 {[%clk 0:02:58.1]} 9. Re1 {[%clk 0:02:50.9]} 9... Bg7 {[%clk
0:02:55.3]} 10. Bf1 {[%clk 0:02:50.6]} 10... O-O {[%clk 0:02:54.3]} 11. Na3
{[%clk 0:02:44.1]} 11... Ne4 {[%clk 0:02:52.5]} 12. Nc2 {[%clk 0:02:43.2]} 12...
Rad8 {[%clk 0:02:49.6]} 13. Ne3 {[%clk 0:02:36.3]} 13... a6 {[%clk 0:02:44.7]}
14. Bd3 {[%clk 0:02:17.7]} 14... b5 {[%clk 0:02:33.8]} 15. a4 {[%clk 0:02:11.8]}
15... b4 {[%clk 0:02:27.1]} 16. Nxd5 {[%clk 0:01:51.3]} 16... Rxd5 {[%clk
0:02:24.4]} 17. Bxe4 {[%clk 0:01:51.4]} 17... Bxe4 {[%clk 0:02:23.2]} 18. Rxe4
{[%clk 0:01:52.3]} 18... bxc3 {[%clk 0:02:23.7]} 19. bxc3 {[%clk 0:01:51.7]}
19... Na5 {[%clk 0:02:13.8]} 20. Ba3 {[%clk 0:01:46]} 20... Qxc3 {[%clk
0:02:05.9]} 21. Bxe7 {[%clk 0:01:44.1]} 21... Rb8 {[%clk 0:02:00.4]} 22. Rc1
{[%clk 0:01:42.5]} 22... Qb3 {[%clk 0:01:37.3]} 23. Qe2 {[%clk 0:01:34.8]} 23...
Qxa4 {[%clk 0:01:13.3]} 24. Qxa6 {[%clk 0:01:32.3]} 24... Qd7 {[%clk 0:01:11.8]}
25. Bc5 {[%clk 0:01:10.8]} 25... Nb3 {[%clk 0:01:03.9]} 26. Rb1 {[%clk
0:01:10.2]} 26... Qd8 {[%clk 0:00:33.2]} 27. Ba7 {[%clk 0:00:54.4]} 27... Rbb5
{[%clk 0:00:26.5]} 28. Qa4 {[%clk 0:00:38.1]} 28... Nxd4 {[%clk 0:00:09.7]} 29.
Rxb5 {[%clk 0:00:16.4]} 29... Nxb5 {[%clk 0:00:10.6]} 30. Be3 {[%clk 0:00:15.7]}
30... Bf8 {[%clk 0:00:07.7]} 31. Rc4 {[%clk 0:00:10.7]} 31... Qd6 {[%clk
0:00:03.8]} 32. g3 {[%clk 0:00:09.8]} 32... Nc7 {[%clk 0:00:03.6]} 33. Kg2
{[%clk 0:00:08.3]} 33... Ne6 {[%clk 0:00:03.9]} 34. Qa8 {[%clk 0:00:07.6]} 34...
Rd1 {[%clk 0:00:01.7]} 35. Bh6 {[%clk 0:00:04.3]} 35... Qd3 {[%clk 0:00:01.9]}
36. g4 {[%clk 0:00:02.9]} 36... Qxc4 {[%clk 0:00:01.5]} 37. Bxf8 {[%clk
0:00:01.9]} 37... Nxf8 {[%clk 0:00:02.4]} 38. Qb8 {[%clk 0:00:02.4]} 38... Qe6
{[%clk 0:00:02.6]} 39. Ng5 {[%clk 0:00:01.4]} 39... Qd5+ {[%clk 0:00:02]} 40.
Nf3 {[%clk 0:00:01.8]} 40... Rd3 {[%clk 0:00:02.5]} 41. Qf4 {[%clk 0:00:02.3]}
41... Qxf3+ {[%clk 0:00:02.5]} 42. Qxf3 {[%clk 0:00:02.2]} 42... Rxf3 {[%clk
0:00:03.4]} 43. Kxf3 {[%clk 0:00:03.1]} 43... Kg7 {[%clk 0:00:04.3]} 44. h4
{[%clk 0:00:03.6]} 44... Kf6 {[%clk 0:00:04.6]} 45. Ke4 {[%clk 0:00:03.6]} 45...
h6 {[%clk 0:00:05]} 46. f4 {[%clk 0:00:03.9]} 46... Ne6 {[%clk 0:00:05.4]} 47.
Ke3 {[%clk 0:00:02.3]} 47... Nc7 {[%clk 0:00:04.4]} 48. Ke4 {[%clk 0:00:02.7]}
48... Ke6 {[%clk 0:00:04.9]} 49. h5 {[%clk 0:00:02.1]} 49... gxh5 {[%clk
0:00:04.7]} 0-1